bitfinex/quotes_ETHUSD_20250213
["timestamp","ask_amount","ask_price","bid_price","bid_amount"]
[1739423841268,0.0075,2710.0,2709.7,3.0]
[1739423842128,0.0075,2710.0,2709.7,6.69043]
[1739423842324,0.0075,2710.0,2709.9,3.69017]
[1739423842608,0.0075,2710.0,2709.8,3.6903]
[1739423843278,0.55,2710.1,2709.7,3.0]
[1739423843429,0.55,2710.1,2709.9,3.69013]
[1739423843927,0.55,2710.1,2709.8,35.0]
[1739423844228,0.0075,2710.0,2709.7,6.69037]
[1739423844827,0.015,2710.0,2709.7,6.69037]
[1739423845030,0.015,2710.0,2709.6,6.69056]
[1739423845524,0.015,2710.0,2709.8,3.69029]
[1739423845889,0.015,2710.0,2709.7,3.69035]
[1739423846086,0.5575,2709.8,2709.6,3.0]
[1739423846291,0.983775,2709.8,2709.3,4.45209]
[1739423846513,0.983775,2709.8,2709.5,3.69068]
[1739423846700,0.0075,2709.8,2709.5,3.69068]
[1739423847114,0.0075,2709.8,2709.5,7.38136]
[1739423847369,0.0075,2709.9,2709.8,3.69029]
[1739423847648,0.1816118,2710.4,2710.1,3.6899]
[1739423847822,0.0075,2710.4,2710.3,3.68958]
[1739423848550,0.5575,2710.4,2710.1,3.6899]
[1739423848768,0.5575,2710.4,2709.6,1.53549451]
[1739423848902,0.5575,2710.4,2710.1,3.68984]
[1739423849109,0.5575,2709.8,2709.2,0.8326]
[1739423849411,0.5575,2709.8,2709.6,3.69047]
[1739423849607,0.5575,2709.8,2709.4,3.69076]
[1739423849836,0.5575,2709.8,2709.4,3.69081]
[1739423850069,0.5575,2709.8,2709.4,3.69077]
[1739423850545,0.5575,2709.8,2709.4,7.38154]
[1739423850850,0.5575,2709.8,2709.4,3.69077]
[1739423851261,0.5575,2709.8,2709.5,3.6907]
[1739423851404,0.5575,2709.8,2709.7,3.69044]
[1739423851609,4.76264739,2710.2,2709.7,3.69044]
[1739423851965,5.60863513,2710.2,2709.7,3.69044]
[1739423852245,0.565,2710.1,2709.4,3.69085]
[1739423852447,0.1949,2710.8,2710.4,3.68941]
[1739423852646,0.1949,2710.8,2709.8,0.277]
[1739423852830,0.0075,2710.5,2710.1,3.68987]
[1739423853022,0.0075,2710.5,2710.1,3.68986]
[1739423853349,0.377922,2710.5,2710.0,3.0]
[1739423853508,0.0075,2710.5,2710.4,3.68949]
[1739423854534,0.38209503,2711.1,2710.7,3.689]
[1739423854736,0.1949,2711.1,2710.8,3.68894]
[1739423855122,0.1949,2711.1,2710.3,6.68955]
[1739423855123,0.1949,2711.1,2710.9,3.6887]
[1739423855532,0.2024,2711.4,2710.9,3.6887]
[1739423855843,8.07198998,2711.2,2710.7,3.68901]
[1739423856046,0.015,2711.1,2710.3,7.52085]
[1739423856345,0.0075,2710.8,2710.6,3.68921]
[1739423857306,0.0075,2710.8,2710.7,3.68908]
[1739423857709,0.55,2710.9,2710.6,7.37821]
[1739423858150,0.55,2710.9,2710.7,3.68895]
[1739423858309,0.5575,2710.9,2710.8,3.68894]
[1739423859324,0.5575,2710.9,2710.7,3.68895]
[1739423860354,0.5575,2710.9,2710.5,3.6893]
[1739423860655,0.0075,2710.8,2710.5,7.37861]
[1739423860856,0.0075,2710.8,2710.3,3.8313]
[1739423860857,0.0075,2710.8,2710.7,3.68908]
[1739423861941,0.0075,2710.8,2710.6,3.68921]
[1739423862147,0.0075,2710.8,2710.5,6.68928]
[1739423862317,0.0075,2710.8,2710.5,3.0]
[1739423862518,0.55,2710.7,2710.5,3.0]
[1739423862858,0.0075,2710.8,2710.0,1.105]
[1739423863064,0.0075,2710.8,2710.6,3.68909]
[1739423863756,0.0075,2710.8,2710.5,6.68926]
[1739423864055,0.015,2710.5,2710.0,3.68996]
[1739423864265,0.0075,2710.3,2709.9,3.6901]
[1739423864459,0.0075,2710.3,2709.8,3.69029]
[1739423864460,0.0075,2710.1,2709.8,3.69029]
[1739423864786,0.0075,2709.8,2709.7,6.69035]
[1739423865220,0.0075,2710.0,2709.8,3.6903]
[1739423865421,0.0075,2710.0,2709.6,3.69057]
[1739423865763,0.0075,2710.0,2709.6,3.69049]
[1739423866037,0.0075,2710.0,2709.8,3.69022]
[1739423866464,0.0075,2710.0,2709.9,3.69017]
[1739423867160,0.0075,2710.0,2709.7,3.69033]
[1739423867343,0.0075,2710.0,2709.9,3.69017]
[1739423867544,0.73838345,2710.1,2709.9,3.69017]
[1739423867751,0.0075,2710.1,2710.0,3.69003]
[1739423868336,0.7599,2710.5,2710.1,3.68986]
[1739423868566,0.0075,2710.2,2710.1,3.68986]
[1739423868767,4.38353998,2710.6,2710.1,3.68986]
[1739423868768,0.1949,2711.3,2710.1,0.7761]
[1739423869087,0.0075,2711.2,2710.7,3.68898]
[1739423869231,0.0075,2711.2,2710.9,3.68873]
[1739423869633,0.565,2711.2,2710.7,3.689]
[1739423869829,0.565,2711.2,2710.7,3.68897]
[1739423870053,4.25348,2711.2,2710.6,3.68915]
[1739423870255,0.0075,2710.9,2710.7,3.68908]
[1739423870456,0.0075,2710.9,2710.8,3.68894]
[1739423871249,0.015,2711.1,2710.9,3.68881]
[1739423872232,0.015,2711.1,2710.9,7.37753]
[1739423872432,0.015,2711.1,2711.0,3.68867]
[1739423874257,0.0075,2711.1,2711.0,3.68867]
[1739423875415,4.57843998,2711.8,2711.0,0.40583417]
[1739423875547,4.57843998,2711.8,2711.6,3.68774]
[1739423875744,4.57843998,2711.8,2711.5,3.68793]
[1739423875975,0.015,2711.7,2711.4,3.68807]
[1739423876178,0.474344,2711.7,2711.5,3.68798]
[1739423877186,4.57843998,2712.1,2711.3,3.68826]
[1739423877386,9.52731,2712.0,2711.5,3.6879]
[1739423877568,0.015,2711.9,2711.5,7.37581]
[1739423877774,0.015,2711.9,2711.5,7.37582]
[1739423878091,0.015,2711.9,2711.7,3.68768]
[1739423878299,0.1949,2712.1,2712.0,3.68731]
[1739423878587,0.1949,2712.3,2712.1,3.68711]
[1739423878763,0.457844,2712.2,2712.0,3.68719]
[1739423878966,0.565,2712.1,2712.0,3.68719]
[1739423879263,0.565,2712.1,2711.9,3.68744]
[1739423879472,0.0075,2712.1,2712.0,3.68731]
[1739423880150,0.0075,2712.2,2712.1,3.68717]
[1739423880352,0.0075,2712.3,2712.2,3.68699]
[1739423880665,4.38353998,2712.7,2712.5,7.37314]
[1739423880841,0.015,2712.5,2711.9,3.68735]
[1739423881049,0.015,2712.5,2711.8,0.277]
[1739423881351,0.565,2712.5,2712.2,3.68704]
[1739423881989,0.565,2712.5,2712.0,3.6873]
[1739423882485,0.0075,2712.2,2712.0,3.6873]
[1739423882816,0.0075,2712.2,2712.1,3.68717]
[1739423883112,0.0075,2712.2,2712.0,3.68723]
[1739423883450,0.0075,2712.2,2712.1,3.68717]
[1739423883903,0.0075,2712.2,2711.9,3.68732]
[1739423884112,0.0075,2712.2,2712.0,3.68719]
[1739423884984,0.0075,2712.2,2712.1,3.68717]
[1739423885189,0.00554582,2712.2,2712.1,3.68717]
[1739423885392,4.38353998,2712.7,2712.3,3.68684]
[1739423885697,0.5575,2712.5,2712.2,3.68704]
[1739423886093,4.38353998,2712.7,2712.2,0.7619]
[1739423886287,0.1949,2713.0,2712.9,3.68609]
[1739423886588,0.0075,2713.1,2712.9,3.68609]
[1739423887205,0.565,2713.1,2712.9,3.68609]
[1739423887720,0.565,2713.1,2712.7,3.68623]
[1739423887871,0.015,2713.1,2712.8,3.68614]
[1739423888352,0.47507824,2713.1,2712.7,3.68623]
[1739423888515,0.55,2713.0,2712.5,3.68658]
[1739423888816,0.0075,2712.9,2712.7,3.68633]
[1739423889616,0.565,2713.0,2712.8,3.68622]
[1739423889914,0.565,2713.0,2712.7,3.68633]
[1739423890213,1.05556682,2713.0,2712.7,3.68628]
[1739423890414,0.565,2713.0,2712.7,3.68628]
[1739423890579,0.565,2713.0,2712.7,7.37256]
[1739423891018,0.565,2713.0,2712.7,7.37257]
[1739423891210,0.565,2713.0,2712.6,3.68641]
[1739423891520,0.565,2713.0,2712.2,8.20056528]
[1739423891676,0.565,2713.0,2712.8,3.68613]
[1739423891873,0.565,2713.0,2712.9,3.68609]
[1739423892125,0.0075,2713.0,2712.9,3.68609]
[1739423892326,0.0075,2713.0,2712.8,3.68613]
[1739423892503,0.0075,2713.0,2712.7,0.753]
[1739423892834,0.0075,2712.8,2712.4,3.68668]
[1739423892989,0.0075,2712.8,2712.2,1.56346528]
[1739423893188,0.55,2712.9,2712.7,3.68636]
[1739423893389,0.1949,2713.2,2712.2,1.56346528]
[1739423893701,0.015,2713.2,2712.9,7.37198]
[1739423893900,0.0075,2713.2,2712.9,3.68597]
[1739423894104,0.0075,2713.2,2713.0,3.68595]
[1739423895032,0.0075,2713.2,2713.1,3.68582]
[1739423895809,0.00734244,2713.3,2713.2,3.68568]
[1739423896339,0.00734244,2713.3,2712.8,0.7708]
[1739423896494,0.00734244,2713.3,2713.1,3.68581]
[1739423896934,0.00734244,2713.3,2712.9,3.68603]
[1739423897134,0.20224244,2713.3,2712.8,4.45702]
[1739423897465,0.20224244,2713.3,2711.6,10.90779]
[1739423897466,0.0075,2713.1,2712.7,3.68635]
[1739423898095,0.0075,2713.1,2712.8,3.68615]
[1739423898434,0.0075,2713.1,2713.0,3.68595]
[1739423899160,0.0075,2713.1,2712.8,3.6861]
[1739423900305,0.0075,2713.1,2712.8,7.37223]
[1739423900453,0.0075,2713.1,2713.0,3.68595]
[1739423901146,0.00734244,2713.3,2713.2,3.68568]
[1739423902873,0.00734244,2713.3,2713.2,6.68568]
[1739423903279,0.00734244,2713.3,2713.2,7.47148]
[1739423904104,2.44e-06,2713.3,2713.2,7.5083288]
[1739423904303,2.44e-06,2713.3,2713.2,7.50832392]
[1739423904440,2.44e-06,2713.3,2713.2,7.47148]
[1739423905171,2.44e-06,2713.3,2713.2,8.22239155]
[1739423905366,0.0075,2714.2,2713.3,3.0]
[1739423905545,0.0075,2714.2,2713.4,0.276]
[1739423905847,0.0075,2714.2,2713.9,3.68465]
[1739423906159,0.0075,2714.2,2713.7,3.68489]
[1739423906357,0.5575,2714.2,2713.7,3.68489]
[1739423906683,0.5575,2714.2,2713.8,3.68485]
[1739423907188,0.5575,2714.2,2713.7,3.68489]
[1739423907393,4.24184,2714.2,2713.7,3.68489]
[1739423907546,0.0075,2713.9,2713.2,5.22233155]
[1739423907743,0.0075,2713.7,2713.2,3.68561]
[1739423907947,0.5575,2713.5,2713.0,8.13248]
[1739423908297,0.5575,2713.5,2713.1,3.68581]
[1739423908449,0.0075,2713.4,2712.9,3.0]
[1739423908649,0.0075,2713.4,2713.0,3.68594]
[1739423908847,0.0075,2713.4,2713.2,3.68566]
[1739423909897,0.0075,2713.4,2713.2,3.68559]
[1739423910105,0.1949,2713.9,2713.2,0.754]
[1739423910318,0.1949,2713.9,2713.3,3.68541]
[1739423910613,0.565,2713.8,2713.5,3.68524]
[1739423910965,0.1949,2714.2,2713.4,3.0]
[1739423911179,3.68449,2714.1,2713.6,3.68513]
[1739423911382,0.565,2714.0,2713.6,3.68513]
[1739423911996,0.565,2714.1,2713.8,3.68479]
[1739423912197,0.565,2714.1,2713.7,3.68499]
[1739423912402,4.24953,2714.1,2713.5,6.68525]
[1739423912600,0.5575,2713.9,2713.5,3.0]
[1739423912914,0.5575,2713.9,2713.4,3.68533]
[1739423913221,0.0075,2713.9,2713.4,3.68533]
[1739423913518,0.0075,2713.9,2713.4,3.68532]
[1739423913823,0.55,2713.8,2713.4,3.68532]
[1739423914161,0.55,2713.6,2713.3,3.0]
[1739423914415,0.55,2713.6,2713.3,6.68547]
[1739423914622,0.0075,2713.5,2713.3,3.0]
[1739423914902,3.69319,2713.2,2712.7,3.68627]
[1739423915100,3.69319,2713.2,2712.8,3.0]
[1739423915101,0.55,2713.1,2712.8,3.0]
[1739423915410,0.0075,2712.8,2712.5,3.68654]
[1739423915705,0.0075,2712.5,2712.1,3.68705]
[1739423916406,0.0075,2712.5,2711.9,3.68731]
[1739423916601,0.0075,2712.5,2712.1,3.6871]
[1739423917100,0.0075,2712.5,2712.1,7.37417]
[1739423917301,0.0075,2712.5,2712.3,3.68678]
[1739423917503,3.68250339,2712.9,2712.3,3.68678]
[1739423917504,3.49686203,2712.9,2712.3,3.68678]
[1739423917804,1.1507421,2712.9,2712.4,3.68668]
[1739423918100,0.565,2712.8,2712.1,3.68707]
[1739423918305,4.25134,2712.8,2712.1,3.68707]
[1739423918506,0.0075,2712.5,2712.1,3.68707]
[1739423918708,0.5575,2712.4,2711.9,3.68742]
[1739423919066,0.5575,2712.4,2712.1,3.68716]
[1739423919604,0.5575,2712.4,2712.1,3.68707]
[1739423919804,0.5575,2712.4,2712.3,3.6869]
[1739423921707,0.565,2712.6,2712.3,7.37372]
[1739423921896,0.565,2712.6,2712.4,3.68667]
[1739423922515,0.565,2712.6,2712.5,3.68663]
[1739423922684,0.565,2712.6,2712.3,3.68682]
[1739423922881,0.565,2712.6,2712.4,3.68673]
[1739423923081,0.565,2712.6,2712.5,3.68663]
[1739423923287,0.565,2712.6,2712.4,3.68666]
[1739423923483,0.1949,2713.3,2712.6,3.68649]
[1739423923688,3.68571,2713.2,2712.6,3.68649]
[1739423924006,0.015,2713.1,2712.6,3.68649]
[1739423924209,0.015,2713.1,2712.5,3.6865]
[1739423924210,3.68593,2713.1,2712.5,3.6865]
[1739423924416,4.49274711,2713.0,2712.5,3.6865]
[1739423924567,0.015,2712.7,2712.3,3.68687]
[1739423924776,0.015,2712.5,2712.1,3.6871]
[1739423924999,0.015,2712.5,2712.2,3.0]
[1739423925586,0.015,2712.5,2712.2,6.68697]
[1739423925999,0.0075,2712.6,2711.8,1.78168285]
[1739423926183,0.5575,2712.7,2712.6,3.6865]
[1739423926390,0.0075,2712.7,2712.6,3.6865]
[1739423926714,0.565,2713.0,2712.6,3.6865]
[1739423926901,0.015,2713.0,2712.6,3.6865]
[1739423927512,0.565,2713.0,2712.8,3.68621]
[1739423927711,0.565,2713.0,2712.9,3.68609]
[1739423927899,0.565,2713.0,2712.8,7.37234]
[1739423928104,0.565,2713.0,2712.6,3.68641]
[1739423928489,0.565,2713.0,2712.7,3.68635]
[1739423928686,0.5575,2713.0,2712.8,3.68611]
[1739423928899,0.5575,2713.0,2712.9,3.68609]
[1739423929223,0.2099,2713.4,2713.2,3.68567]
[1739423929518,0.565,2713.4,2713.2,3.68567]
[1739423930092,0.565,2713.4,2712.9,4.4948]
[1739423930298,4.25048,2713.4,2712.9,3.686]
[1739423930680,7.93599,2713.4,2712.9,3.686]
[1739423931016,1.5806977,2713.4,2713.0,3.68587]
[1739423931219,0.565,2713.4,2713.2,3.68568]
[1739423931418,0.565,2713.4,2713.0,7.3717]
[1739423931720,0.5575,2713.4,2713.1,3.68579]
[1739423932119,0.5575,2713.4,2713.0,3.68583]
[1739423932620,4.24297,2713.4,2712.9,6.68608]
[1739423932797,0.0075,2713.3,2713.0,3.68594]
[1739423932998,0.0075,2713.3,2713.0,3.68587]
[1739423933606,0.1949,2713.6,2712.5,1.53952076]
[1739423933808,0.565,2713.5,2712.7,3.68636]
[1739423934015,0.565,2713.5,2713.1,3.68571]
[1739423935023,4.57644111,2713.8,2713.4,3.68541]
[1739423935228,0.015,2713.7,2713.4,3.68541]
[1739423935525,0.565,2713.7,2713.4,3.68541]
[1739423935896,0.565,2713.7,2713.3,3.68553]
[1739423935897,0.565,2713.7,2713.5,3.68523]
[1739423936923,0.5575,2713.7,2713.6,3.68514]
[1739423937090,0.1949,2714.0,2713.7,3.68489]
[1739423937315,0.565,2713.9,2713.7,3.68489]
[1739423937616,0.565,2713.9,2713.6,3.68514]
[1739423938155,0.565,2713.9,2713.5,3.68518]
[1739423938345,0.565,2713.9,2713.6,3.68502]
[1739423938858,0.565,2713.9,2713.5,3.68518]
[1739423939316,0.565,2713.9,2713.5,7.37037]
[1739423939652,0.565,2713.9,2713.6,3.68506]
[1739423940351,5.043624,2713.9,2713.4,6.68541]
[1739423940664,4.05882997,2713.7,2713.2,3.68561]
[1739423940844,4.05882997,2713.7,2712.9,1.0984]
[1739423941157,3.68872997,2714.0,2713.6,3.68514]
[1739423941955,0.565,2713.9,2713.6,3.68514]
[1739423942145,0.565,2713.9,2713.6,7.3702]
[1739423942458,0.0075,2713.7,2713.0,3.0]
[1739423942627,0.565,2713.7,2713.3,3.68553]
[1739423942832,4.25003,2713.7,2713.2,3.0]
[1739423943034,0.565,2713.7,2713.2,3.0]
[1739423943244,0.565,2713.7,2713.3,3.68546]
[1739423943635,0.0075,2713.5,2713.2,3.0]
[1739423943823,0.0075,2713.5,2713.2,6.68567]
[1739423944257,0.565,2713.5,2713.1,3.68573]
[1739423944560,1.783155,2713.5,2712.6,4.46398]
[1739423944717,0.0075,2713.2,2712.8,3.68615]
[1739423945558,0.565,2713.4,2712.8,3.68615]
[1739423945728,0.565,2713.4,2713.0,3.68595]
[1739423946657,0.565,2713.4,2712.6,0.7776]
[1739423946862,0.015,2713.4,2712.8,3.0]
[1739423947163,0.015,2713.4,2713.2,3.68557]
[1739423947315,0.0075,2713.4,2713.2,3.68557]
[1739423947520,3.88011,2713.6,2713.0,7.37173]
[1739423947742,0.565,2713.5,2713.0,3.68586]
[1739423947957,0.565,2713.5,2713.0,7.37174]
[1739423948156,0.565,2713.5,2713.0,3.68586]
[1739423948358,0.565,2713.5,2712.9,3.68609]
[1739423948565,0.565,2713.5,2713.4,3.68541]
[1739423948759,0.1949,2713.9,2713.4,3.68541]
[1739423948964,0.55,2713.8,2713.4,3.68541]
[1739423949123,0.565,2713.8,2713.4,3.68541]
[1739423949324,0.565,2713.8,2713.5,3.6852]
[1739423949618,0.565,2713.8,2713.4,3.68534]
[1739423949822,0.015,2713.8,2713.3,0.754]
[1739423950022,3.69994,2713.8,2713.3,3.68547]
[1739423950464,0.0075,2713.6,2713.4,3.6854]
[1739423950868,0.0075,2713.6,2713.5,3.68527]
[1739423951742,0.5575,2713.8,2713.6,3.68506]
[1739423951964,0.55,2714.1,2713.6,3.68506]
[1739423952121,0.015,2714.0,2713.8,3.68483]
[1739423952525,0.015,2714.0,2713.6,3.68505]
[1739423952751,0.0075,2713.8,2713.6,3.68505]
[1739423953866,0.0075,2713.8,2713.5,6.68522]
[1739423954028,0.0075,2713.8,2713.5,3.0]
[1739423954229,0.0075,2713.8,2713.6,3.68511]
[1739423954765,0.0075,2713.8,2713.7,3.685]
[1739423954932,0.0075,2713.8,2713.6,3.68505]
[1739423956175,0.1949,2714.2,2713.5,3.03684941]
[1739423956331,3.87926,2714.2,2713.7,3.68491]
[1739423956655,0.565,2714.1,2713.7,3.68491]
[1739423956860,0.565,2714.1,2713.8,3.68485]
[1739423957855,0.1949,2714.5,2714.0,3.68459]
[1739423958169,0.1949,2714.5,2714.1,3.68436]
[1739423958339,0.565,2714.4,2714.0,3.68459]
[1739423958761,4.24905,2714.4,2713.8,0.827]
[1739423959444,4.24905,2714.4,2713.9,3.68464]
[1739423959641,0.565,2714.4,2713.9,3.68464]
[1739423959860,0.565,2714.4,2714.1,3.68444]
[1739423960061,0.565,2714.4,2713.9,7.36924]
[1739423960262,0.565,2714.4,2714.0,3.68456]
[1739423960763,0.565,2714.4,2714.1,3.68438]
[1739423962488,0.565,2714.4,2713.9,3.68465]
[1739423962788,0.5575,2714.2,2713.8,4.51179]
[1739423963087,0.0075,2714.2,2714.0,7.36904]
[1739423963670,0.565,2714.4,2713.8,0.827]
[1739423963992,0.565,2714.4,2714.0,3.68459]
[1739423964291,0.565,2714.4,2714.2,3.68432]
[1739423964477,0.990373,2714.4,2713.8,4.51177]
[1739423964651,0.5575,2714.2,2713.8,8.19657]
[1739423964991,0.5575,2714.2,2713.9,3.68471]
[1739423965655,0.5575,2714.2,2713.8,3.827]
[1739423966494,0.5575,2714.2,2713.9,3.68472]
[1739423966848,0.5575,2714.2,2713.8,3.827]
[1739423967049,0.0075,2713.9,2713.6,3.68507]
[1739423967284,0.5575,2714.0,2713.9,3.68473]
[1739423967666,0.015,2714.0,2713.6,3.0]
[1739423967885,0.5575,2713.9,2713.5,3.68517]
[1739423968083,0.5575,2713.9,2713.5,7.37038]
[1739423968285,0.0075,2713.7,2713.5,3.68517]
[1739423968458,0.5575,2713.7,2713.5,3.68517]
[1739423969403,0.5575,2713.7,2713.3,3.68546]
[1739423969559,4.05132997,2713.7,2713.3,3.68546]
[1739423969874,7.73633997,2713.7,2713.2,3.68562]
[1739423970077,4.05132997,2713.7,2713.3,3.68544]
[1739423970572,4.05132997,2713.7,2713.4,3.68531]
[1739423970768,4.05132997,2713.7,2713.3,3.68544]
[1739423970975,4.05132997,2713.7,2713.3,7.37091]
[1739423971176,4.05132997,2713.7,2713.3,3.68544]
[1739423971378,4.05132997,2713.7,2713.5,3.68526]
[1739423971779,4.05132997,2713.7,2713.3,7.3709]
[1739423972281,4.05132997,2713.7,2713.4,3.68539]
[1739423972477,4.05132997,2713.7,2713.4,3.68531]
[1739423972993,4.05132997,2713.7,2713.3,3.68544]
[1739423973792,4.05132997,2713.7,2713.3,7.3709]
[1739423974198,4.05132997,2713.7,2713.4,3.68533]
[1739423974769,4.05132997,2713.7,2713.5,3.68527]
[1739423975399,4.05132997,2713.7,2713.6,3.68514]
[1739423975675,4.497327,2714.5,2713.9,3.68471]
[1739423976011,0.1949,2714.5,2714.0,3.68448]
[1739423976215,0.015,2714.4,2714.1,3.68443]
[1739423976575,0.015,2714.4,2714.2,3.6843]
[1739423977309,0.565,2714.4,2714.2,3.68423]
[1739423977718,0.015,2714.4,2714.2,3.68423]
[1739423977882,0.015,2714.4,2714.3,3.68419]
[1739423978089,3.68872997,2714.9,2714.5,3.68388]
[1739423978299,4.07562823,2714.9,2714.4,3.68395]
[1739423978480,0.565,2714.8,2714.3,3.68419]
[1739423980277,4.24857,2714.8,2714.1,4.44655]
[1739423980476,0.565,2714.8,2714.1,0.7622]
[1739423980783,0.565,2714.8,2714.4,3.68393]
[1739423982281,0.565,2714.8,2714.2,3.68425]
[1739423982492,0.565,2714.8,2714.3,3.68418]
[1739423983101,0.565,2714.8,2714.2,3.68429]
[1739423984429,0.565,2714.8,2714.2,3.68424]
[1739423984590,0.565,2714.8,2714.3,3.68411]
[1739423985213,0.565,2714.8,2714.4,3.68405]
[1739423985719,4.24851,2714.8,2714.3,3.68415]
[1739423986133,0.565,2714.8,2714.4,3.68403]
[1739423986951,0.5575,2714.8,2714.4,3.68403]
[1739423987092,4.24109,2714.8,2714.2,3.68429]
[1739423987298,0.5575,2714.8,2714.2,3.68429]
[1739423987500,0.55,2714.6,2714.2,3.68429]
[1739423987800,0.0075,2714.5,2714.2,3.68429]
[1739423987988,0.0075,2714.5,2714.1,7.44666]
[1739423988187,0.55,2714.6,2714.3,3.7935]
[1739423988387,0.1460352,2715.2,2714.8,3.68346]
[1739423988634,0.0075,2715.1,2714.8,3.68346]
[1739423988933,0.0075,2715.1,2714.7,3.68364]
[1739423989136,4.2406,2715.1,2714.5,3.68388]
[1739423989429,0.0075,2714.8,2714.3,0.7935]
[1739423989731,0.5575,2714.8,2714.3,4.47768]
[1739423990033,4.24103,2714.8,2714.3,4.47768]
[1739423990407,0.0075,2714.8,2714.6,3.68377]
[1739423990808,0.5575,2714.8,2714.6,3.68377]
[1739423991132,0.5575,2714.8,2714.4,7.36794]
[1739423991828,0.0075,2714.8,2714.4,3.68397]
[1739423992030,0.0075,2714.8,2714.4,7.36794]
[1739423992404,0.0075,2714.8,2714.4,3.68397]
[1739423993429,0.0075,2714.7,2714.4,3.68397]
[1739423993633,0.0075,2714.7,2714.3,0.7935]
[1739423993834,0.0075,2714.5,2714.2,3.6843]
[1739423993995,0.55,2714.6,2714.3,3.68405]
[1739423995532,0.55,2714.6,2714.2,3.68428]
[1739423997347,3.87861,2714.7,2714.0,1.0843]
[1739423997348,3.87805,2715.1,2714.0,1.0843]
[1739423997556,3.68324,2715.0,2714.4,3.68393]
[1739423997848,0.015,2714.8,2714.4,3.68393]
[1739423998029,3.69852,2714.8,2714.3,3.68418]
[1739423998235,0.1460352,2715.2,2714.8,3.68341]
[1739423998640,0.015,2715.1,2714.8,3.68341]
[1739423999452,0.565,2715.1,2714.8,7.36683]
[1739423999652,0.565,2715.1,2714.8,3.68341]
[1739424000636,0.565,2715.1,2714.7,3.68355]
[1739424000951,0.565,2715.1,2714.6,7.36742]
[1739424001354,0.5575,2715.1,2714.5,0.7521]
[1739424001519,0.5575,2715.1,2714.9,3.68336]
[1739424002818,0.565,2715.1,2715.0,3.68324]
[1739424003012,0.5575,2715.1,2715.0,3.68324]
[1739424004117,0.1460352,2715.2,2715.0,4.50084]
[1739424004427,0.1460352,2715.2,2715.1,3.6831]
[1739424005495,0.6960352,2715.2,2715.1,3.6831]
[1739424006832,0.6960352,2715.2,2715.0,7.50084]
[1739424006833,0.55,2715.1,2715.0,7.50084]
[1739424007097,0.55,2715.1,2715.0,3.8176]
[1739424007278,0.1460352,2715.2,2715.0,3.8176]
[1739424007279,0.1535352,2715.2,2715.1,3.6831]
[1739424007632,0.7035352,2715.2,2715.1,3.6831]
[1739424009285,0.6960352,2715.2,2715.1,3.6831]
[1739424010386,0.6960352,2715.2,2715.1,6.6831]
[1739424010387,0.1460352,2715.2,2715.1,6.6831]
[1739424011640,0.1535352,2715.2,2715.0,4.50082]
[1739424011843,0.0075,2715.1,2714.9,3.68329]
[1739424012106,0.0075,2715.1,2715.0,3.68324]
[1739424012243,0.1460352,2715.2,2715.0,3.68324]
[1739424012446,0.1460352,2715.2,2715.1,4.4737]
[1739424015298,0.1460352,2715.2,2715.1,7.4737]
[1739424017276,0.6960352,2715.2,2715.1,6.6831]
[1739424017512,0.6960352,2715.2,2715.1,6.9581]
[1739424018101,0.1460352,2715.2,2715.1,6.9581]
[1739424018685,0.1460352,2715.2,2715.1,7.778]
[1739424018870,3.87646,2716.3,2715.7,3.68221]
[1739424019072,0.015,2716.2,2715.7,3.68221]
[1739424019281,0.0075,2716.0,2715.6,3.0]
[1739424019486,0.0075,2715.8,2715.5,3.68248]
[1739424019711,7.74098997,2715.8,2715.3,3.68274]
[1739424019899,7.74098997,2715.8,2715.2,0.275]
[1739424019900,0.565,2715.8,2715.5,3.68248]
[1739424020088,0.18480968,2716.0,2715.7,3.68221]
[1739424020288,0.5575,2715.9,2715.7,3.68221]
[1739424020486,0.0075,2715.8,2715.5,3.68248]
[1739424020816,0.0075,2715.7,2715.3,3.68277]
[1739424020987,0.0075,2715.6,2715.3,3.68277]
[1739424021496,0.0075,2715.6,2715.1,8.12037]
[1739424021700,0.015,2715.4,2714.8,1.0462]
[1739424021887,0.015,2715.4,2715.0,3.68324]
[1739424022072,0.015,2715.4,2715.2,3.68292]
[1739424022672,0.015,2715.4,2715.3,3.68283]
[1739424023750,0.015,2715.4,2715.0,3.68314]
[1739424023905,0.015,2715.4,2715.1,3.0]
[1739424024215,0.015,2715.4,2715.0,3.68314]
[1739424025035,0.0075,2715.4,2715.3,3.68283]
[1739424025209,0.1949,2715.7,2715.5,3.68251]
[1739424025624,0.0075,2715.6,2715.5,3.68251]
[1739424026981,0.015,2715.7,2715.5,3.68251]
[1739424027269,4.06163968,2716.0,2715.5,3.68251]
[1739424027614,4.05882997,2715.9,2715.4,3.0]
[1739424027918,0.0075,2715.5,2715.4,3.0]
[1739424028130,0.0075,2715.5,2715.4,6.68269]
[1739424028446,0.0075,2715.5,2715.4,3.0]
[1739424028650,0.0075,2715.5,2715.4,6.68269]
[1739424029007,0.0075,2715.6,2715.4,6.68269]
[1739424029203,0.0075,2715.6,2715.5,3.68256]
[1739424030635,0.015,2715.7,2715.2,3.6829]